{"text_format":"1","workbook":"xlsx","n_sheets":1,"sheets":["Tax Calc"],"not_rendered":{"charts":0,"images":3,"macros":1,"external_links":0,"defined_names":7,"comments":0,"pivot_tables":0},"unopened":[],"bounds":{"document_bytes":16777216,"sheet_cells":100000,"rows_first":2000,"rows_last":500,"rows_between":2000,"halvings":0,"cell_chars":16384,"cell_head_chars":4096},"cells_cut":0,"cells_raw":0,"read":"whole","date_system":"1900"}

{"sheet":"Tax Calc","index":0,"n_rows":132,"n_cols":27,"rows_kept":132,"cut":false,"hidden":false,"merged":[]}
[]
[]
["1)  Click the                             button"]
[]
["2)  Click on the cell C32 and using the drop-down arrow (box) please select one of the three (3) counties listed"]
[]
["     The current School District Millage Rate as of 2022-2023 will automatically display for the County selected in cell C36"]
[]
["     The current Public Library Millage Rate as of 2022-2023 will automatically display for the County selected in cell C38"]
[]
["3)  Click on cell C34 and type in your Total Assessed Value as indicated on your most recent property tax bill "]
[]
["     YOUR SCHOOL DISTRICT PROPERTY TAX AMOUNT FOR 2022-2023 will display (ASSUMING NO TAX INCREASE) prior to Homestead / Farmstead Exclusion in cell C40"]
[]
["4)  If you would like to see how a tax millage increase for your county would affect your property tax bill for 2023-2024 please click on cell C49"]
["     and make a selection from the drop-down arrow (box)"]
[]
["     YOUR NEW SCHOOL DISTRICT PROPERTY TAX AMOUNT FOR 2023-2024 will display (INCLUDING TAX INCREASE selected) and including the Homestead / Farmstead Exclusion in cell C54"]
[]
["     The DOLLAR AMOUNT OF SCHOOL DISTRICT TAX INCREASE (DECREASE) of your selected COUNTY is displayed in cell C65"]
[]
["PLEASE NOTE:  Not all taxpayers qualify for the HOMESTEAD / FARMSTEAD EXCLUSION for their particular property "]
[]
[]
[]
[null,null,null,null,null,null,null,null,null,null,null,null,null,null,null,null,null,null,null,null,null,null,null,null,null,null,1E-3]
[null,null,null,null,null,null,null,null,null,null,null,null,null,null,null,null,null,null,null,null,null,"Carbon","Luzerne","Schuylkill","Carbon","Luzerne","Schuylkill"]
[null,null,null,null,null,null,null,null,null,null,null,null,null,null,null,null,null,null,null,0,"Current Tax Millage",2.8709499999999999E-2,8.8567000000000003E-3,3.0074900000000002E-2,6.0919999999999995E-4,1.8789999999999999E-4,6.8309999999999996E-4]
[null,null,null,null,null,null,null,null,null,null,null,null,null,null,null,null,null,null,null,1,"1 Mill Increase",{"$f":"IF(ISERROR((V28+$AA$26)),\"-\",(V28+$AA$26))","v":2.97095E-2},{"$f":"IF(ISERROR((W28+$AA$26)),\"-\",(W28+$AA$26))","v":9.8566999999999995E-3},{"$f":"IF(ISERROR((X28+$AA$26)),\"-\",(X28+$AA$26))","v":3.1074900000000003E-2},6.0919999999999995E-4,1.8789999999999999E-4,6.8309999999999996E-4]
[null,null,null,null,null,null,null,null,null,null,null,null,null,null,null,null,null,null,null,2,"2 Mill Increase",3.0709500000000001E-2,1.08567E-2,3.2074900000000003E-2,6.0919999999999995E-4,1.8789999999999999E-4,6.8309999999999996E-4]
[null,null,null,null,null,{"$f":"IF(ISERROR((C32&A70)),\"-\",(C32&A70))","v":"2022-2023"},null,null,null,null,null,null,null,null,null,null,null,null,null,3,"3 Mill Increase",3.1709500000000002E-2,1.1856700000000001E-2,3.3074900000000004E-2,6.0919999999999995E-4,1.8789999999999999E-4,6.8309999999999996E-4]
["Please select the county that your property resides in:",null,null,null,null,{"$f":"IF(ISERROR((C32&C49)),\"-\",(C32&C49))","v":"2023-2024 (Approved)"},null,null,null,null,null,null,null,null,null,null,null,null,null,4,"4 Mill Increase",3.2709500000000002E-2,1.2856700000000002E-2,3.4074900000000005E-2,6.0919999999999995E-4,1.8789999999999999E-4,6.8309999999999996E-4]
[null,null,null,null,null,null,null,null,null,null,null,null,null,null,null,null,null,null,null,5,"5 Mill Increase",3.3709500000000003E-2,1.3856700000000003E-2,3.5074900000000006E-2,6.0919999999999995E-4,1.8789999999999999E-4,6.8309999999999996E-4]
["Please enter your property's Total Assessed Value as indicated on your most current tax bill:",null,null,null,null,null,null,null,null,null,null,null,null,null,null,null,null,null,null,6,"6 Mill Increase",3.4709500000000004E-2,1.4856700000000004E-2,3.6074900000000007E-2,6.0919999999999995E-4,1.8789999999999999E-4,6.8309999999999996E-4]
[null,null,null,null,null,null,null,null,null,null,null,null,null,null,null,null,null,null,null,7,"7 Mill Increase",3.5709500000000005E-2,1.5856700000000005E-2,3.7074900000000008E-2,6.0919999999999995E-4,1.8789999999999999E-4,6.8309999999999996E-4]
["Current School District Millage Rate for County selected (2022-2023)",null,{"$f":"IF(ISERROR((IF($C$32=B70,C70,IF($C$32=B71,C71,IF($C$32=B72,C72,\" \"))))),\"-\",(IF($C$32=B70,C70,IF($C$32=B71,C71,IF($C$32=B72,C72,\" \")))))","v":" "},"mills",null,null,null,null,null,null,null,null,null,null,null,null,null,null,null,8,"8 Mill Increase",3.6709500000000006E-2,1.6856700000000006E-2,3.8074900000000009E-2,6.0919999999999995E-4,1.8789999999999999E-4,6.8309999999999996E-4]
[null,null,null,null,null,null,null,null,null,null,null,null,null,null,null,null,null,null,null,9,"9 Mill Increase",3.7709500000000007E-2,1.7856700000000007E-2,3.907490000000001E-2,6.0919999999999995E-4,1.8789999999999999E-4,6.8309999999999996E-4]
["Current Public Library Millage Rate for County selected (2022-2023)",null,{"$f":"IF(ISERROR((IF($C$32=B70,D70,IF($C$32=B71,D71,IF($C$32=B72,D72,\" \"))))),\"-\",(IF($C$32=B70,D70,IF($C$32=B71,D71,IF($C$32=B72,D72,\" \")))))","v":" "},"mills",null,null,null,null,null,null,null,null,null,null,null,null,null,null,null,10,"10 Mill Increase",3.8709500000000008E-2,1.8856700000000007E-2,4.0074900000000011E-2,6.0919999999999995E-4,1.8789999999999999E-4,6.8309999999999996E-4]
[null,null,null,null,null,null,null,null,null,null,null,null,null,null,null,null,null,null,null,11,"11 Mill Increase",3.9709500000000009E-2,1.9856700000000008E-2,4.1074900000000011E-2,6.0919999999999995E-4,1.8789999999999999E-4,6.8309999999999996E-4]
["YOUR SCHOOL DISTRICT PROPERTY TAX BILL FOR 2022-2023 prior to Homestead / Farmstead Exclusion",null,{"$f":"IF(ISERROR((C34*(C36+C38))),\"-\",(C34*(C36+C38)))","v":"-"},null,null,null,null,null,null,null,null,null,null,null,null,null,null,null,null,12,"12 Mill Increase",4.070950000000001E-2,2.0856700000000009E-2,4.2074900000000012E-2,6.0919999999999995E-4,1.8789999999999999E-4,6.8309999999999996E-4]
[null,null,null,null,null,null,null,null,null,null,null,null,null,null,null,null,null,null,null,13,"13 Mill Increase",4.170950000000001E-2,2.185670000000001E-2,4.3074900000000013E-2,6.0919999999999995E-4,1.8789999999999999E-4,6.8309999999999996E-4]
[null,null,null,null,null,null,null,null,null,null,null,null,null,null,null,null,null,null,null,14,"14 Mill Increase",4.2709500000000011E-2,2.2856700000000011E-2,4.4074900000000014E-2,6.0919999999999995E-4,1.8789999999999999E-4,6.8309999999999996E-4]
["Less:  Homestead / Farmstead Exclusion",null,{"$f":"IF(ISERROR(VLOOKUP(F31,NEWTAX,5,FALSE)),\"-\",(VLOOKUP(F31,NEWTAX,5,FALSE)))","v":"-"},null,null,null,null,null,null,null,null,null,null,null,null,null,null,null,null,12,"12 Mill Increase",4.3709500000000012E-2,2.3856700000000012E-2,4.5074900000000015E-2,6.0919999999999995E-4,1.8789999999999999E-4,6.8309999999999996E-4]
[]
[]
["YOUR SCHOOL DISTRICT PROPERTY TAX BILL FOR 2022-2023 including Homestead / Farmstead Exclusion",null,{"$f":"IFERROR(C40+C43,0)","v":0},null,null,null,null,null,null,null,null,null,null,null,null,null,null,null,null,12,"12 Mill Increase",1E-3,1E-3,1E-3,6.0919999999999995E-4,1.8789999999999999E-4,6.8309999999999996E-4]
[]
[null,null,null,null,null,null,null,null,null,null,null,null,null,null,null,null,null,null,null,16,"16 Mill Increase",{"$f":"IF(ISERROR((V43+$AA$26)),\"-\",(V43+$AA$26))","v":4.4709500000000013E-2},{"$f":"IF(ISERROR((W43+$AA$26)),\"-\",(W43+$AA$26))","v":2.4856700000000013E-2},{"$f":"IF(ISERROR((X43+$AA$26)),\"-\",(X43+$AA$26))","v":4.6074900000000016E-2},6.0919999999999995E-4,1.8789999999999999E-4,6.8309999999999996E-4]
["Please select the tax millage increase (in mills) to see your 2023-2024 School District Property Tax",null,"2023-2024 (Approved)",null,null,null,null,null,null,null,null,null,null,null,null,null,null,null,null,17,"17 Mill Increase",4.5709500000000014E-2,2.5856700000000014E-2,4.7074900000000017E-2,6.0919999999999995E-4,1.8789999999999999E-4,6.8309999999999996E-4]
[null,null,null,null,null,null,null,null,null,null,null,null,null,null,null,null,null,null,null,18,"18 Mill Increase",4.6709500000000015E-2,2.6856700000000015E-2,4.8074900000000018E-2,6.0919999999999995E-4,1.8789999999999999E-4,6.8309999999999996E-4]
[null,null,null,null,null,null,null,null,null,null,null,null,null,null,null,null,null,null,null,19,"19 Mill Increase",4.7709500000000016E-2,2.7856700000000015E-2,4.9074900000000019E-2,6.0919999999999995E-4,1.8789999999999999E-4,6.8309999999999996E-4]
[null,null,null,null,null,null,null,null,null,null,null,null,null,null,null,null,null,null,null,20,"20 Mill Increase",4.8709500000000017E-2,2.8856700000000016E-2,5.0074900000000019E-2,6.0919999999999995E-4,1.8789999999999999E-4,6.8309999999999996E-4]
[null,null,null,null,null,null,null,null,null,null,null,null,null,null,null,null,null,null,null,21,"21 Mill Increase",4.9709500000000018E-2,2.9856700000000017E-2,5.107490000000002E-2,6.0919999999999995E-4,1.8789999999999999E-4,6.8309999999999996E-4]
["YOUR SCHOOL DISTRICT PROPERTY TAX BILL FOR 2023-2024 prior to Homestead / Farmstead Exclusion",null,{"$f":"IF(ISERROR((VLOOKUP(F32,NEWTAX,4,FALSE)*$C$34)),\"-\",(VLOOKUP(F32,NEWTAX,4,FALSE)*$C$34))","v":"-"},null,null,null,null,null,null,null,null,null,null,null,null,null,null,null,null,22,"22 Mill Increase",5.0709500000000018E-2,3.0856700000000018E-2,5.2074900000000021E-2,6.0919999999999995E-4,1.8789999999999999E-4,6.8309999999999996E-4]
[null,null,null,null,null,null,null,null,null,null,null,null,null,null,null,null,null,null,null,23,"23 Mill Increase",5.1709500000000019E-2,3.1856700000000016E-2,5.3074900000000022E-2,6.0919999999999995E-4,1.8789999999999999E-4,6.8309999999999996E-4]
[]
["Less:  *ESTIMATED Homestead / Farmstead Exclusion ",null,{"$f":"IF(ISERROR(VLOOKUP(F32,NEWTAX,5,FALSE)),\"-\",(VLOOKUP(F32,NEWTAX,5,FALSE)))","v":"-"},null,null,null,null,null,null,null,null,null,null,null,null,null,null,null,null,12,"12 Mill Increase",1E-3,1E-3,1E-3,6.0919999999999995E-4,1.8789999999999999E-4,6.8309999999999996E-4]
[]
[]
["YOUR SCHOOL DISTRICT PROPERTY TAX BILL FOR 2023-2024 including Homestead / Farmstead Exclusion",null,{"$f":"IFERROR(C54+C57,0)","v":0},null,null,null,null,null,null,null,null,null,null,null,null,null,null,null,null,22,"22 Mill Increase",1E-3,1E-3,1E-3,6.0919999999999995E-4,1.8789999999999999E-4,6.8309999999999996E-4]
[]
[null,null,null,null,null,null,null,null,null,null,null,null,null,null,null,null,null,null,null,24,"24 Mill Increase",{"$f":"IF(ISERROR((V55+$AA$26)),\"-\",(V55+$AA$26))","v":5.270950000000002E-2},{"$f":"IF(ISERROR((W55+$AA$26)),\"-\",(W55+$AA$26))","v":3.2856700000000016E-2},{"$f":"IF(ISERROR((X55+$AA$26)),\"-\",(X55+$AA$26))","v":5.4074900000000023E-2},6.0919999999999995E-4,1.8789999999999999E-4,6.8309999999999996E-4]
[null,null,null,null,null,null,null,null,null,null,null,null,null,null,null,null,null,null,null,25,"25 Mill Increase",5.3709500000000021E-2,3.3856700000000017E-2,5.5074900000000024E-2,6.0919999999999995E-4,1.8789999999999999E-4,6.8309999999999996E-4]
[]
["DOLLAR AMOUNT OF TAX INCREASE (DECREASE)",null,{"$f":"IF(ISERROR((C60-C46)),\"-\",(C60-C46))","v":0}]
[]
[]
[]
[null,null,"S.D. Property Tax","Library","C.L.R."]
["2022-2023","Carbon",3.0491000000000001E-2,6.0919999999999995E-4,0.3,null,null,null,null,null,null,null,null,null,null,null,null,null,null,"Carbon1 Mill Increase","Carbon","1 Mill Increase",2.9805999999999999E-2]
["2022-2023","Luzerne",1.2052E-2,1.8789999999999999E-4,0.88900000000000001,null,null,null,null,null,null,null,null,null,null,null,null,null,null,"Carbon2 Mill Increase","Carbon","2 Mill Increase",3.0806E-2]
["2022-2023","Schuylkill",3.5985000000000003E-2,6.38E-4,0.32100000000000001,null,null,null,null,null,null,null,null,null,null,null,null,null,null,"Carbon3 Mill Increase","Carbon","3 Mill Increase",3.1806000000000001E-2]
["2023-2024","Carbon",3.2287000000000003E-2,6.0919999999999995E-4,0.24299999999999999,null,null,null,null,null,null,null,null,null,null,null,null,null,null,"Carbon4 Mill Increase","Carbon","4 Mill Increase",3.2806000000000002E-2]
["2023-2024","Luzerne",1.2529E-2,1.8789999999999999E-4,0.76,null,null,null,null,null,null,null,null,null,null,null,null,null,null,"Carbon5 Mill Increase","Carbon","5 Mill Increase",3.3806000000000003E-2]
["2023-2024","Schuylkill",3.8086000000000002E-2,6.38E-4,0.26200000000000001,null,null,null,null,null,null,null,null,null,null,null,null,null,null,"Carbon6 Mill Increase","Carbon","6 Mill Increase",3.4806000000000004E-2]
[null,null,null,null,null,null,"Homestead",null,null,null,null,null,null,null,null,null,null,null,"Carbon13 Mill Increase","Carbon","13 Mill Increase",4.180600000000001E-2]
["Carbon","2022-2023",{"$f":"A77&B77","v":"Carbon2022-2023"},3.0491000000000001E-2,6.0919999999999995E-4,{"$f":"D77+E77","v":3.1100200000000001E-2},-447.58,null,null,null,null,null,null,null,null,null,null,null,null,"Carbon14 Mill Increase","Carbon","14 Mill Increase",4.2806000000000011E-2]
["Carbon","2023-2024 (Approved)",{"$f":"A78&B78","v":"Carbon2023-2024 (Approved)"},3.1491999999999999E-2,6.0919999999999995E-4,{"$f":"D78+E78","v":3.2101199999999996E-2},-450.81,null,null,null,null,null,null,null,null,null,null,null,null,"Carbon15 Mill Increase","Carbon","15 Mill Increase",4.3806000000000012E-2]
["Luzerne","2022-2023",{"$f":"A79&B79","v":"Luzerne2022-2023"},1.2052E-2,1.8789999999999999E-4,{"$f":"D79+E79","v":1.22399E-2},-447.56,null,null,null,null,null,null,null,null,null,null,null,null,"Carbon18 Mill Increase","Carbon","18 Mill Increase",4.6806000000000014E-2]
["Luzerne","2023-2024 (Approved)","Luzerne2023-2024 (Approved)",1.222E-2,1.8789999999999999E-4,1.2407899999999999E-2,-450.81,null,null,null,null,null,null,null,null,null,null,null,null,"Carbon19 Mill Increase","Carbon","19 Mill Increase",4.7806000000000015E-2]
["Schuylkill","2022-2023",{"$f":"A81&B81","v":"Schuylkill2022-2023"},3.5985000000000003E-2,6.38E-4,{"$f":"D81+E81","v":3.6623000000000003E-2},-447.58,null,null,null,null,null,null,null,null,null,null,null,null,"Carbon22 Mill Increase","Carbon","22 Mill Increase",5.0806000000000018E-2]
["Schuylkill","2023-2024 (Approved)",{"$f":"A82&B82","v":"Schuylkill2023-2024 (Approved)"},3.7148E-2,6.38E-4,{"$f":"D82+E82","v":3.7786E-2},-450.79,null,null,null,null,null,null,null,null,null,null,null,null,"Carbon23 Mill Increase","Carbon","23 Mill Increase",5.1806000000000019E-2]
[null,null,null,null,null,null,null,null,null,null,null,null,null,null,null,null,null,null,"Luzerne1 Mill Increase","Luzerne","1 Mill Increase",0.17539199999999999]
[null,null,null,null,null,null,null,null,null,null,null,null,null,null,null,null,null,null,"Luzerne2 Mill Increase","Luzerne","2 Mill Increase",0.17639199999999999]
[null,null,null,null,null,null,null,null,null,null,null,null,null,null,null,null,null,null,"Luzerne3 Mill Increase","Luzerne","3 Mill Increase",0.17739199999999999]
[null,null,null,null,null,null,null,null,null,null,null,null,null,null,null,null,null,null,"Luzerne4 Mill Increase","Luzerne","4 Mill Increase",0.178392]
[null,null,null,null,null,null,null,null,null,null,null,null,null,null,null,null,null,null,"Luzerne5 Mill Increase","Luzerne","5 Mill Increase",0.179392]
[null,null,null,null,null,null,null,null,null,null,null,null,null,null,null,null,null,null,"Luzerne6 Mill Increase","Luzerne","6 Mill Increase",0.180392]
[null,null,null,null,null,null,null,null,null,null,null,null,null,null,null,null,null,null,"Luzerne7 Mill Increase","Luzerne","7 Mill Increase",0.181392]
[null,null,null,null,null,null,null,null,null,null,null,null,null,null,null,null,null,null,"Luzerne8 Mill Increase","Luzerne","8 Mill Increase",0.182392]
[null,null,null,null,null,null,null,null,null,null,null,null,null,null,null,null,null,null,"Luzerne9 Mill Increase","Luzerne","9 Mill Increase",0.183392]
[null,null,null,null,null,null,null,null,null,null,null,null,null,null,null,null,null,null,"Luzerne10 Mill Increase","Luzerne","10 Mill Increase",0.184392]
[null,null,null,null,null,null,null,null,null,null,null,null,null,null,null,null,null,null,"Luzerne11 Mill Increase","Luzerne","11 Mill Increase",0.185392]
[null,null,null,null,null,null,null,null,null,null,null,null,null,null,null,null,null,null,"Luzerne12 Mill Increase","Luzerne","12 Mill Increase",0.186392]
[null,null,null,null,null,null,null,null,null,null,null,null,null,null,null,null,null,null,"Luzerne13 Mill Increase","Luzerne","13 Mill Increase",0.187392]
[null,null,null,null,null,null,null,null,null,null,null,null,null,null,null,null,null,null,"Luzerne14 Mill Increase","Luzerne","14 Mill Increase",0.188392]
[null,null,null,null,null,null,null,null,null,null,null,null,null,null,null,null,null,null,"Luzerne15 Mill Increase","Luzerne","15 Mill Increase",0.189392]
[null,null,null,null,null,null,null,null,null,null,null,null,null,null,null,null,null,null,"Luzerne16 Mill Increase","Luzerne","16 Mill Increase",0.19039200000000001]
[null,null,null,null,null,null,null,null,null,null,null,null,null,null,null,null,null,null,"Luzerne17 Mill Increase","Luzerne","17 Mill Increase",0.19139200000000001]
[null,null,null,null,null,null,null,null,null,null,null,null,null,null,null,null,null,null,"Luzerne18 Mill Increase","Luzerne","18 Mill Increase",0.19239200000000001]
[null,null,null,null,null,null,null,null,null,null,null,null,null,null,null,null,null,null,"Luzerne19 Mill Increase","Luzerne","19 Mill Increase",0.19339200000000001]
[null,null,null,null,null,null,null,null,null,null,null,null,null,null,null,null,null,null,"Luzerne20 Mill Increase","Luzerne","20 Mill Increase",0.19439200000000001]
[null,null,null,null,null,null,null,null,null,null,null,null,null,null,null,null,null,null,"Luzerne21 Mill Increase","Luzerne","21 Mill Increase",0.19539200000000001]
[null,null,null,null,null,null,null,null,null,null,null,null,null,null,null,null,null,null,"Luzerne22 Mill Increase","Luzerne","22 Mill Increase",0.19639200000000001]
[null,null,null,null,null,null,null,null,null,null,null,null,null,null,null,null,null,null,"Luzerne23 Mill Increase","Luzerne","23 Mill Increase",0.19739200000000001]
[null,null,null,null,null,null,null,null,null,null,null,null,null,null,null,null,null,null,"Luzerne24 Mill Increase","Luzerne","24 Mill Increase",0.19839200000000001]
[null,null,null,null,null,null,null,null,null,null,null,null,null,null,null,null,null,null,"Luzerne25 Mill Increase","Luzerne","25 Mill Increase",0.19939200000000001]
[null,null,null,null,null,null,null,null,null,null,null,null,null,null,null,null,null,null,"Schuylkill1 Mill Increase","Schuylkill","1 Mill Increase",3.6638000000000004E-2]
[null,null,null,null,null,null,null,null,null,null,null,null,null,null,null,null,null,null,"Schuylkill2 Mill Increase","Schuylkill","2 Mill Increase",3.7638000000000005E-2]
[null,null,null,null,null,null,null,null,null,null,null,null,null,null,null,null,null,null,"Schuylkill3 Mill Increase","Schuylkill","3 Mill Increase",3.8638000000000006E-2]
[null,null,null,null,null,null,null,null,null,null,null,null,null,null,null,null,null,null,"Schuylkill4 Mill Increase","Schuylkill","4 Mill Increase",3.9638000000000007E-2]
[null,null,null,null,null,null,null,null,null,null,null,null,null,null,null,null,null,null,"Schuylkill5 Mill Increase","Schuylkill","5 Mill Increase",4.0638000000000007E-2]
[null,null,null,null,null,null,null,null,null,null,null,null,null,null,null,null,null,null,"Schuylkill6 Mill Increase","Schuylkill","6 Mill Increase",4.1638000000000008E-2]
[null,null,null,null,null,null,null,null,null,null,null,null,null,null,null,null,null,null,"Schuylkill7 Mill Increase","Schuylkill","7 Mill Increase",4.2638000000000009E-2]
[null,null,null,null,null,null,null,null,null,null,null,null,null,null,null,null,null,null,"Schuylkill8 Mill Increase","Schuylkill","8 Mill Increase",4.363800000000001E-2]
[null,null,null,null,null,null,null,null,null,null,null,null,null,null,null,null,null,null,"Schuylkill9 Mill Increase","Schuylkill","9 Mill Increase",4.4638000000000011E-2]
[null,null,null,null,null,null,null,null,null,null,null,null,null,null,null,null,null,null,"Schuylkill10 Mill Increase","Schuylkill","10 Mill Increase",4.5638000000000012E-2]
[null,null,null,null,null,null,null,null,null,null,null,null,null,null,null,null,null,null,"Schuylkill11 Mill Increase","Schuylkill","11 Mill Increase",4.6638000000000013E-2]
[null,null,null,null,null,null,null,null,null,null,null,null,null,null,null,null,null,null,"Schuylkill12 Mill Increase","Schuylkill","12 Mill Increase",4.7638000000000014E-2]
[null,null,null,null,null,null,null,null,null,null,null,null,null,null,null,null,null,null,"Schuylkill13 Mill Increase","Schuylkill","13 Mill Increase",4.8638000000000015E-2]
[null,null,null,null,null,null,null,null,null,null,null,null,null,null,null,null,null,null,"Schuylkill14 Mill Increase","Schuylkill","14 Mill Increase",4.9638000000000015E-2]
[null,null,null,null,null,null,null,null,null,null,null,null,null,null,null,null,null,null,"Schuylkill15 Mill Increase","Schuylkill","15 Mill Increase",5.0638000000000016E-2]
[null,null,null,null,null,null,null,null,null,null,null,null,null,null,null,null,null,null,"Schuylkill16 Mill Increase","Schuylkill","16 Mill Increase",5.1638000000000017E-2]
[null,null,null,null,null,null,null,null,null,null,null,null,null,null,null,null,null,null,"Schuylkill17 Mill Increase","Schuylkill","17 Mill Increase",5.2638000000000018E-2]
[null,null,null,null,null,null,null,null,null,null,null,null,null,null,null,null,null,null,"Schuylkill18 Mill Increase","Schuylkill","18 Mill Increase",5.3638000000000019E-2]
[null,null,null,null,null,null,null,null,null,null,null,null,null,null,null,null,null,null,"Schuylkill19 Mill Increase","Schuylkill","19 Mill Increase",5.463800000000002E-2]
[null,null,null,null,null,null,null,null,null,null,null,null,null,null,null,null,null,null,"Schuylkill20 Mill Increase","Schuylkill","20 Mill Increase",5.5638000000000021E-2]
[null,null,null,null,null,null,null,null,null,null,null,null,null,null,null,null,null,null,"Schuylkill21 Mill Increase","Schuylkill","21 Mill Increase",5.6638000000000022E-2]
[null,null,null,null,null,null,null,null,null,null,null,null,null,null,null,null,null,null,"Schuylkill22 Mill Increase","Schuylkill","22 Mill Increase",5.7638000000000023E-2]
[null,null,null,null,null,null,null,null,null,null,null,null,null,null,null,null,null,null,"Schuylkill23 Mill Increase","Schuylkill","23 Mill Increase",5.8638000000000023E-2]
[null,null,null,null,null,null,null,null,null,null,null,null,null,null,null,null,null,null,"Schuylkill24 Mill Increase","Schuylkill","24 Mill Increase",5.9638000000000024E-2]
[null,null,null,null,null,null,null,null,null,null,null,null,null,null,null,null,null,null,"Schuylkill25 Mill Increase","Schuylkill","25 Mill Increase",6.0638000000000025E-2]